fUST/lending_fUST_20251119
["ID","MTS","AMOUNT","RATE_DAILY","PERIOD"]
[394401808,1763532653089,-649.944084,0.0003,7]
[394401809,1763532653106,-457.345415,0.0003,7]
[394401810,1763532653129,-1074.7,0.0003,30]
[394401811,1763532653149,-577.822956,0.0003,7]
[394401812,1763532653163,-151.0,0.0003,7]
[394401813,1763532653181,-457.345415,0.0003,7]
[394401814,1763532653196,-649.944084,0.0003,7]
[394401815,1763532653211,-577.822956,0.0003,7]
[394401816,1763532653229,-816.479289,0.0003,7]
[394401817,1763532653242,-649.944084,0.0003,7]
[394401818,1763532653257,-577.822956,0.0003,7]
[394401819,1763532653273,-457.345415,0.0003,7]
[394401820,1763532653288,-816.479289,0.0003,7]
[394401821,1763532653301,-649.944084,0.0003,7]
[394401822,1763532653313,-577.822956,0.0003,7]
[394401823,1763532653325,-816.479289,0.0003,7]
[394401824,1763532653340,-457.345415,0.0003,7]
[394401825,1763532653355,-816.479289,0.0003,7]
[394401826,1763532653369,-151.0,0.0003,7]
[394401827,1763532653384,-151.0,0.0003,7]
[394401828,1763532653399,-151.0,0.0003,7]
[394401829,1763532653410,-281.865985,0.0003,7]
[394401830,1763532653421,-151.0,0.0003,7]
[394401831,1763532653435,-151.0,0.0003,7]
[394401832,1763532653451,-151.0,0.0003,7]
[394401833,1763532653462,-199.089647,0.0003,7]
[394401834,1763532653475,-199.089647,0.0003,7]
[394401835,1763532653489,-151.0,0.0003,7]
[394401836,1763532653499,-151.0,0.0003,7]
[394401837,1763532653511,-199.089647,0.0003,7]
[394401838,1763532653524,-151.0,0.0003,7]
[394401839,1763532653536,-199.089647,0.0003,7]
[394401840,1763532653548,-287.14068178,0.0003013,2]
[394401841,1763532653562,-312.10451343,0.00030137,5]
[394401842,1763532653576,-1074.7,0.0003018,30]
[394401843,1763532653588,-674.45280183,0.0003022,2]
[394401844,1763532653600,-182.55257422,0.00030329,39]
[394401845,1763532653612,-5000.0,0.00030344,2]
[394401846,1763532653624,-151.0,0.00030344,31]
[394401847,1763532653636,-151.0,0.00030344,31]
[394401848,1763532653648,-151.0,0.00030344,31]
[394401849,1763532653661,-151.0,0.00030344,31]
[394401850,1763532653673,-168.756887,0.00030344,31]
[394401851,1763532653685,-168.756887,0.00030344,31]
[394401852,1763532653697,-168.756887,0.00030344,31]
[394401853,1763532653709,-168.756884,0.00030344,31]
[394401854,1763532653722,-151.0,0.00030344,31]
[394401855,1763532653734,-174.550251,0.00030344,31]
[394401856,1763532653743,-151.0,0.00030344,31]
[394401857,1763532653753,-165.653222,0.00030344,31]
[394401858,1763532653763,-151.0,0.00030344,31]
[394401859,1763532653773,-151.0,0.00030344,31]
[394401860,1763532653782,-857.229514,0.00030344,31]
[394401861,1763532653792,-857.229514,0.00030344,31]
[394401862,1763532653802,-857.229514,0.00030344,31]
[394401863,1763532653811,-857.229514,0.00030344,31]
[394401864,1763532653821,-151.0,0.00030344,31]
[394401865,1763532653831,-151.0,0.00030344,31]
[394401866,1763532653840,-154.522416,0.00030344,31]
[394401867,1763532653850,-151.0,0.00030344,31]
[394401868,1763532653860,-151.0,0.00030344,31]
[394401869,1763532653870,-153.614734,0.00030344,31]
[394401870,1763532653880,-206.942255,0.00030344,31]
[394401871,1763532653890,-206.942255,0.00030344,31]
[394401872,1763532653899,-206.942255,0.00030344,31]
[394401873,1763532653909,-206.942255,0.00030344,31]
[394401874,1763532653918,-151.0,0.00030344,31]
[394401875,1763532653928,-151.0,0.00030344,31]
[394401876,1763532653937,-151.0,0.00030344,31]
[394401877,1763532653947,-151.0,0.00030344,31]
[394401878,1763532653957,-190.801758,0.00030344,31]
[394401879,1763532653966,-151.0,0.00030344,31]
[394401880,1763532653976,-151.0,0.00030344,31]
[394401881,1763532653985,-151.0,0.00030344,31]
[394401882,1763532653995,-151.0,0.00030344,31]
[394401883,1763532654005,-151.0,0.00030344,31]
[394401884,1763532654015,-194.799944,0.00030344,31]
[394401885,1763532654025,-151.801934,0.00030344,31]
[394401886,1763532654034,-151.0,0.00030344,31]
[394401887,1763532654043,-151.0,0.00030344,31]
[394401888,1763532654052,-151.0,0.00030344,31]
[394401889,1763532654062,-895.61969,0.00030344,2]
[394401890,1763532654071,-895.61969,0.00030344,2]
[394401891,1763532654269,-151.0,0.00030344,31]
[394401892,1763532654284,-895.61969,0.00030344,2]
[394401893,1763532654294,-151.0,0.00030344,31]
[394401894,1763532654303,-895.61969,0.00030344,2]
[394401895,1763532654312,-157.720948,0.00030344,31]
[394401896,1763532654321,-208.263525,0.00030344,31]
[394401897,1763532654331,-208.263525,0.00030344,31]
[394401898,1763532654341,-208.263525,0.00030344,31]
[394401899,1763532654350,-208.263525,0.00030344,31]
[394401900,1763532654359,-1074.7,0.0003036,30]
[394401901,1763532654370,-160.0,0.00030361,7]
[394401902,1763532654379,-2060.0,0.00030394,2]
[394401903,1763532654388,-53901.88,0.000304,2]
[394401904,1763532654397,-151.0,0.000304,31]
[394401905,1763532654407,-246.033993,0.000304,31]
[394401906,1763532654416,-272.896447,0.000304,31]
[394401907,1763532654425,-159.218276,0.000304,31]
[394401908,1763532654435,-272.896447,0.000304,31]
[394401909,1763532654444,-159.218276,0.000304,31]
[394401910,1763532654453,-272.896447,0.000304,31]
[394401911,1763532654463,-159.218276,0.000304,31]
[394401912,1763532654472,-272.896447,0.000304,31]
[394401913,1763532654481,-159.218276,0.000304,31]
[394401914,1763532654490,-423.067706,0.000304,31]
[394401915,1763532654500,-423.067706,0.000304,31]
[394401916,1763532654510,-423.067706,0.000304,31]
[394401917,1763532654521,-423.067706,0.000304,31]
[394401918,1763532654533,-254.27228,0.000304,31]
[394401919,1763532654549,-254.27228,0.000304,31]
[394401920,1763532654559,-254.27228,0.000304,31]
[394401921,1763532654568,-254.27228,0.000304,31]
[394401922,1763532654578,-151.0,0.000304,31]
[394401923,1763532654587,-649.944084,0.000304,7]
[394401924,1763532654596,-457.345415,0.000304,31]
[394401925,1763532654606,-577.822956,0.000304,31]
[394401926,1763532654615,-151.0,0.000304,31]
[394401927,1763532654625,-649.944084,0.000304,7]
[394401928,1763532654635,-457.345415,0.000304,31]
[394401929,1763532654644,-577.822956,0.000304,31]
[394401930,1763532654653,-816.479289,0.000304,31]
[394401931,1763532654663,-649.944084,0.000304,7]
[394401932,1763532654672,-457.345415,0.000304,31]
[394401933,1763532654681,-577.822956,0.000304,31]
[394401934,1763532654691,-816.479289,0.000304,31]
[394401935,1763532654700,-649.944084,0.000304,7]
[394401936,1763532654709,-577.822961,0.000304,31]
[394401937,1763532654718,-816.479289,0.000304,31]
[394401938,1763532654728,-457.345422,0.000304,31]
[394401939,1763532654739,-816.479293,0.000304,31]
[394401940,1763532654748,-151.0,0.000304,31]
[394401941,1763532654758,-151.0,0.000304,31]
[394401942,1763532654768,-151.0,0.000304,31]
[394401943,1763532654778,-151.0,0.000304,31]
[394401944,1763532654788,-151.0,0.000304,31]
[394401945,1763532654797,-151.0,0.000304,31]
[394401946,1763532654807,-199.089647,0.000304,31]
[394401947,1763532654816,-199.089647,0.000304,31]
[394401948,1763532654826,-159.114267,0.000304,31]
[394401949,1763532654836,-151.0,0.000304,31]
[394401950,1763532654846,-199.089647,0.000304,31]
[394401951,1763532654855,-151.0,0.000304,31]
[394401952,1763532654864,-199.089655,0.000304,31]
[394401953,1763532654874,-525.37,0.00030684,2]
[394401954,1763532654883,-2000.0,0.0003072,7]
[394401955,1763532654892,-2761.97,0.000308,2]
[394401956,1763532654901,-2451.35,0.000308,7]
[394401957,1763532654910,-1000.0,0.00030814,14]
[394401958,1763532654919,-400.87691731,0.000309,30]
[394401959,1763532654928,-1267.80068747,0.00030942,2]
[394401960,1763532654937,-305.30108462,0.0003099,2]
[394401961,1763532654946,-1000.0,0.00031,2]
[394401962,1763532654955,-1000.0,0.00031,2]
[394401963,1763532654965,-1000.0,0.00031,2]
[394401964,1763532654974,-1000.0,0.00031,2]
[394401965,1763532654983,-1000.0,0.00031,2]
[394401966,1763532654992,-980.29856148,0.0003102,2]
[394401967,1763532655002,-160.0,0.00031349,8]
[394401968,1763532655011,-176.27315468,0.00031349,5]
[394401969,1763532655021,-1855.68,0.0003157,2]
[394401970,1763532655031,-523.47655094,0.00031631,2]
[394401971,1763532655040,-5787.87,0.000317,14]
[394401972,1763532655050,-166.8028097,0.00031759,2]
[394401973,1763532655059,-525.37,0.0003178,2]
[394401974,1763532655067,-5000.0,0.00031788,2]
[394401975,1763532655077,-400.87691731,0.000318,30]
[394401976,1763532655087,-2000.0,0.00031855,7]
[394401977,1763532655096,-90000.0,0.00032,3]
[394401978,1763532655106,-1532.42377056,0.00032,30]
[394401979,1763532655116,-400.87691731,0.00032,3]
[394401980,1763532655126,-53901.88,0.000321,2]
[394401981,1763532655136,-1012.948085,0.00032267,2]
[394401982,1763532655145,-989.0,0.00032364,2]
[394401983,1763532655155,-2151.0,0.00032364,2]
[394401984,1763532655164,-630.0,0.00032364,2]
[394401985,1763532655176,-4427.0,0.00032472,2]
[394401986,1763532655186,-2451.35,0.000327,7]
[394401987,1763532655195,-1000.0,0.00032836,30]
[394401988,1763532655204,-1000.0,0.00032836,30]
[394401989,1763532655213,-525.37,0.00032876,2]
[394401990,1763532655222,-151.0,0.00032877,31]
[394401991,1763532655231,-151.0,0.00032877,31]
[394401992,1763532655240,-151.0,0.00032877,31]
[394401993,1763532655249,-151.0,0.00032877,31]
[394401994,1763532655260,-151.0,0.00032877,31]
[394401995,1763532655270,-151.0,0.00032877,31]
[394401996,1763532655279,-151.0,0.00032877,31]
[394401997,1763532655288,-151.0,0.00032877,31]
[394401998,1763532655297,-151.0,0.00032877,31]
[394401999,1763532655306,-151.0,0.00032877,31]
[394402000,1763532655316,-151.0,0.00032877,31]
[394402001,1763532655325,-151.0,0.00032877,31]
[394402002,1763532655334,-151.0,0.00032877,31]
[394402003,1763532655343,-151.0,0.00032877,31]
[394402004,1763532655352,-156.307023,0.00032877,31]
[394402005,1763532655361,-151.0,0.00032877,31]
[394402006,1763532655374,-151.0,0.00032877,31]
[394402007,1763532655382,-151.0,0.00032877,31]
[394402008,1763532655392,-151.0,0.00032877,31]
[394402009,1763532655401,-224.133619,0.00032877,31]
[394402010,1763532655410,-5757.07,0.00032877,10]
[394402011,1763532655419,-2505.50358628,0.00032877,120]
[394402012,1763532655428,-500.0,0.00032877,7]
[394402013,1763532655437,-497.93178926,0.00032877,7]
[394402014,1763532655447,-500.0,0.00032877,7]
[394402015,1763532655456,-500.0,0.00032877,7]
[394402016,1763532655466,-1012.948085,0.000329,120]
[394402017,1763532655475,-2000.0,0.00032989,7]
[394402018,1763532655484,-88617.52319825,0.00033,2]
[394402019,1763532655493,-400.87691731,0.00033,3]
[394402020,1763532655503,-244.004525,0.00033,31]
[394402021,1763532655512,-151.0,0.00033,31]
[394402022,1763532655521,-151.0,0.00033,31]
[394402023,1763532655531,-857.229514,0.00033,31]
[394402024,1763532655541,-857.229514,0.00033,31]
[394402025,1763532655550,-857.229514,0.00033,31]
[394402026,1763532655560,-857.229513,0.00033,31]
[394402027,1763532655570,-151.0,0.00033,31]
[394402028,1763532655580,-151.0,0.00033,31]
[394402029,1763532655590,-151.0,0.00033,31]
[394402030,1763532655599,-151.0,0.00033,31]
[394402031,1763532655608,-206.942255,0.00033,31]
[394402032,1763532655618,-206.942255,0.00033,31]
[394402033,1763532655627,-206.942255,0.00033,31]
[394402034,1763532655636,-206.942247,0.00033,31]
[394402035,1763532655646,-151.0,0.00033,31]
[394402036,1763532655655,-151.0,0.00033,31]
[394402037,1763532655664,-151.0,0.00033,31]
[394402038,1763532655674,-151.0,0.00033,31]
[394402039,1763532655683,-186.273317,0.00033,31]
[394402040,1763532655693,-151.0,0.00033,31]
[394402041,1763532655702,-151.0,0.00033,31]
[394402042,1763532655712,-151.0,0.00033,31]
[394402043,1763532655722,-151.0,0.00033,31]
[394402044,1763532655731,-151.0,0.00033,31]
[394402045,1763532655742,-151.0,0.00033,31]
[394402046,1763532655752,-151.0,0.00033,31]
[394402047,1763532655762,-895.61969,0.00033,2]
[394402048,1763532655773,-895.61969,0.00033,2]
[394402049,1763532655782,-151.0,0.00033,31]
[394402050,1763532655792,-895.61969,0.00033,2]
[394402051,1763532655804,-151.0,0.00033,31]
[394402052,1763532655814,-895.619697,0.00033,2]
[394402053,1763532655825,-208.263525,0.00033,31]
[394402054,1763532655837,-208.263525,0.00033,31]
[394402055,1763532655848,-208.263525,0.00033,31]
[394402056,1763532655857,-208.263526,0.00033,31]
[394402057,1763532655867,-400.87691731,0.00033,10]
[394402058,1763532655876,-172.0,0.00033068,58]
[394402059,1763532655886,-1132.720159,0.00033165,2]
[394402060,1763532655895,-191.99521954,0.000332,117]
[394402061,1763532655905,-191.99521952,0.000332,117]
[394402062,1763532655915,-191.99521952,0.000332,117]
[394402063,1763532655924,-5000.0,0.00033232,2]
[394402064,1763532655934,-1005.0,0.00033333,10]
[394402065,1763532655943,-208.57736393,0.000334,120]
[394402066,1763532655953,-586.99679178,0.000334,120]
[394402067,1763532655962,-53901.88,0.000336,2]
[394402068,1763532655972,-151.0,0.000336,31]
[394402069,1763532655982,-272.896447,0.000336,31]
[394402070,1763532655992,-159.218276,0.000336,31]
[394402071,1763532656003,-272.896447,0.000336,31]
[394402072,1763532656016,-159.218276,0.000336,31]
[394402073,1763532656026,-272.896447,0.000336,31]
[394402074,1763532656036,-159.218276,0.000336,31]
[394402075,1763532656046,-272.896446,0.000336,31]
[394402076,1763532656056,-159.218272,0.000336,31]
[394402077,1763532656066,-423.067706,0.000336,31]
[394402078,1763532656076,-423.067706,0.000336,31]
[394402079,1763532656087,-423.067706,0.000336,31]
[394402080,1763532656097,-423.067709,0.000336,31]
[394402081,1763532656108,-254.27228,0.000336,31]
[394402082,1763532656117,-254.27228,0.000336,31]
[394402083,1763532656128,-254.27228,0.000336,31]
[394402084,1763532656138,-254.27229,0.000336,31]
[394402085,1763532656147,-166.80280973,0.00033628,2]
[394402086,1763532656157,-562.09367355,0.00033631,120]
[394402087,1763532656168,-5787.87,0.000337,30]
[394402088,1763532656183,-2761.97,0.000338,14]
[394402089,1763532656193,-525.37,0.00033972,2]
[394402090,1763532656202,-254.99141503,0.0003399,60]
[394402091,1763532656212,-842.65451109,0.00034,15]
[394402092,1763532656222,-300.0,0.00034,120]
[394402093,1763532656232,-2000.0,0.00034123,7]
[394402094,1763532656243,-453.95531257,0.00034144,34]
[394402095,1763532656256,-2783.51,0.00034201,2]
[394402096,1763532656267,-53598.59135371,0.00034247,30]
[394402128,1763532756336,-300.0,0.00016337,2]
[394402129,1763532756365,-889700.0,0.00016338,2]
[394402134,1763533125192,202.68301109,0.0001,2]
[394402148,1763533665799,888.0,0.00032876,120]
[394402150,1763533711912,167.7461354,0.0003919,120]
[394402152,1763533713155,1017.08911957,0.0002,120]
[394402153,1763533802280,1000.0,0.00030137,120]
[394402154,1763533803095,906.4778728,0.00030137,120]
[394402155,1763533810155,183.591297,0.00030137,120]
[394402199,1763533831939,-219.40292443,0.00015709,2]
[394402201,1763533831949,-179.61252805,0.00015759,2]
[394402204,1763533831959,-589.04162712,0.00015809,2]
[394402206,1763533831968,-258.25828172,0.00015809,2]
[394402208,1763533831986,-208.30946218,0.00015809,2]
[394402211,1763533831997,-417.0,0.00016663,2]
[394402212,1763533832007,-300.0,0.00016663,2]
[394402215,1763533832019,-1079.0,0.00016663,2]
[394402219,1763533832030,-300.0,0.00016664,2]
[394402221,1763533832040,-300.0,0.00016664,2]
[394402224,1763533832050,-300.0,0.00016664,2]
[394402228,1763533832061,-300.0,0.00016664,2]
[394402231,1763533832072,-300.0,0.00016664,2]
[394402234,1763533832082,-300.0,0.00016664,2]
[394402237,1763533832091,-300.0,0.00016664,2]
[394402240,1763533832101,-300.0,0.00016664,2]
[394402243,1763533832110,-300.0,0.00016664,2]
[394402246,1763533832119,-300.0,0.00016664,2]
[394402249,1763533832129,-300.0,0.00016664,2]
[394402252,1763533832138,-300.0,0.00016664,2]
[394402255,1763533832147,-300.0,0.00016664,2]
[394402258,1763533832157,-300.0,0.00016664,2]
[394402261,1763533832167,-300.0,0.00016664,2]
[394402264,1763533832176,-600.0,0.00016664,2]
[394402267,1763533832185,-6392.84288598,0.00016664,2]
[394402270,1763533832194,-354.53183,0.00017435,2]
[394402273,1763533832203,-211.9427831,0.00017759,2]
[394402276,1763533832213,-908.24698997,0.00018,2]
[394402278,1763533832222,-185.4440162,0.00018,2]
[394402281,1763533832232,-420.0,0.00018206,2]
[394402283,1763533832242,-720.0,0.0001833,2]
[394402285,1763533832251,-1603.4849268,0.00018726,2]
[394402287,1763533832260,-597.3512532,0.00018726,2]
[394402289,1763533832270,-500.0,0.00018956,2]
[394402291,1763533832279,-500.0,0.00018956,2]
[394402293,1763533832288,-630.0,0.00019283,2]
[394402295,1763533832298,-2151.0,0.00019283,2]
[394402297,1763533832308,-989.0,0.00019283,2]
[394402299,1763533832317,-414.0,0.00019283,2]
[394402301,1763533832329,-1000.0,0.00019504,2]
[394402303,1763533832339,-922.87952356,0.00019504,2]
[394402305,1763533832348,-244.27303815,0.00019759,2]
[394402307,1763533832359,-6904.47525677,0.00019799,2]
[394402309,1763533832368,-160.0,0.00019864,2]
[394402311,1763533832377,-587.0,0.00019892,2]
[394402313,1763533832386,-500.0,0.00019899,2]
[394402315,1763533832395,-500.0,0.00019899,2]
[394402317,1763533832404,-500.0,0.00019899,2]
[394402319,1763533832414,-504.15298543,0.00019899,2]
[394402321,1763533832424,-500.0,0.00019899,2]
[394402323,1763533832433,-500.0,0.00019899,2]
[394402325,1763533832443,-500.0,0.00019899,2]
[394402327,1763533832452,-500.0,0.00019899,2]
[394402329,1763533832461,-500.0,0.00019899,2]
[394402331,1763533832471,-500.0,0.00019899,2]
[394402333,1763533832480,-500.0,0.00019899,2]
[394402335,1763533832489,-500.0,0.00019899,2]
[394402337,1763533832499,-8738.0,0.000199,2]
[394402339,1763533832511,-1209.83352287,0.000199,2]
[394402341,1763533832522,-209.40437684,0.00019988,2]
[394402343,1763533832531,-500.0,0.00019999,2]
[394402345,1763533832542,-500.0,0.00019999,2]
[394402348,1763533832554,-500.0,0.00019999,2]
[394402349,1763533832563,-11655.35572389,0.0002,2]
[394402351,1763533832572,-14616.89995151,0.0002,2]
[394402353,1763533832583,-251.78698765,0.0002,21]
[394402355,1763533832592,-2990.4548575,0.0002,20]
[394402357,1763533832601,-150.00013677,0.0002,7]
[394402359,1763533832611,-369.51969723,0.0002,2]
[394402361,1763533832619,-23000.0,0.0002,2]
[394402363,1763533832629,-201.5101141,0.0002,2]
[394402365,1763533832638,-1500.0,0.00020051,2]
[394402367,1763533832648,-864.0,0.00020163,2]
[394402369,1763533832657,-500.0,0.00020173,2]
[394402371,1763533832667,-1424.507239,0.00020294,2]
[394402373,1763533832676,-260.0,0.00020412,2]
[394402375,1763533832685,-648.26030909,0.00020447,2]
[394402377,1763533832695,-217.15233878,0.00020536,2]
[394402379,1763533832704,-1797.86682684,0.00020599,2]
[394402381,1763533832713,-1381.26804338,0.0002061,2]
[394402383,1763533832723,-254.85895272,0.000209,2]
[394402385,1763533832732,-360.0,0.0002096,2]
[394402387,1763533832742,-500.0,0.00020973,2]
[394402389,1763533832751,-500.0,0.00020973,2]
[394402391,1763533832760,-500.0,0.00020973,2]
[394402393,1763533832769,-500.0,0.00020973,2]
[394402395,1763533832778,-500.0,0.00020973,2]
[394402397,1763533832787,-275.63626958,0.00021,2]
[394402399,1763533832796,-1548.30889292,0.00021,10]
[394402400,1763533832805,-50000.0,0.00021,2]
[394402402,1763533832814,-1209.83352287,0.00021024,2]
[394402404,1763533832825,-225.18697532,0.00021084,2]
[394402407,1763533832834,-168.0,0.00021112,2]
[394402408,1763533832844,-168.0,0.00021283,2]
[394402410,1763533832853,-460.0,0.00021507,2]
[394402413,1763533832862,-168.0,0.00021515,2]
[394402415,1763533832871,-517.16437544,0.00021521,2]
[394402417,1763533832881,-1000.0,0.00021521,2]
[394402419,1763533832890,-500.0,0.00021521,2]
[394402421,1763533832900,-848.45056487,0.00021521,2]
[394402423,1763533832909,-1000.0,0.00021521,2]
[394402425,1763533832918,-233.51889341,0.00021632,2]
[394402426,1763533832928,-823.0,0.00021734,2]
[394402428,1763533832938,-276.6032932,0.00021759,2]
[394402431,1763533832947,-672.0201599,0.00021793,2]
[394402447,1763533833098,-1603.4849268,0.00021833,2]
[394402449,1763533833112,-168.0,0.00021918,2]
[394402451,1763533833121,-563.56961852,0.0002196,10]
[394402453,1763533833130,-100000.0,0.0002199,2]
[394402455,1763533833140,-1225.68,0.00022,7]
[394402457,1763533833149,-2315.15,0.00022,14]
[394402459,1763533833158,-26950.94,0.00022,2]
[394402461,1763533833167,-168.0,0.00022009,2]
[394402463,1763533833177,-560.0,0.00022055,2]
[394402465,1763533833186,-1500.0,0.00022068,2]
[394402467,1763533833195,-1500.0,0.00022068,2]
[394402469,1763533833204,-160.0,0.00022101,2]
[394402471,1763533833213,-1209.83352287,0.00022147,2]
[394402473,1763533833222,-1000.0,0.0002218,20]
[394402475,1763533833231,-304.13116825,0.0002218,2]
[394402477,1763533833240,-890000.0,0.00022183,2]
[394402479,1763533833249,-500.0,0.00022283,2]
[394402481,1763533833258,-630.0,0.00022283,2]
[394402483,1763533833267,-2151.0,0.00022283,2]
[394402484,1763533833276,-989.0,0.00022283,2]
[394402486,1763533833285,-414.0,0.00022283,2]
[394402488,1763533833295,-166.8028097,0.00022568,2]
[394402490,1763533833304,-660.0,0.00022603,2]
[394402492,1763533833313,-168.0,0.00022605,2]
[394402494,1763533833324,-168.0,0.0002261,2]
[394402496,1763533833334,-2000.0,0.00022616,2]
[394402498,1763533833344,-2000.0,0.00022616,2]
[394402500,1763533833353,-163.15648337,0.00022633,2]
[394402502,1763533833362,-250.0,0.00022633,2]
[394402504,1763533833373,-250.0,0.00022633,2]
[394402506,1763533833382,-1000.0,0.00022633,2]
[394402508,1763533833391,-250.0,0.00022633,2]
[394402510,1763533833401,-1000.0,0.00022633,2]
[394402512,1763533833410,-250.0,0.00022633,2]
[394402514,1763533833420,-1000.0,0.00022633,2]
[394402516,1763533833430,-250.0,0.00022633,2]
[394402518,1763533833439,-1000.0,0.00022633,2]
[394402521,1763533833453,-250.0,0.00022633,2]
[394402522,1763533833463,-1000.0,0.00022633,2]
[394402524,1763533833472,-335.61120984,0.00022633,2]
[394402527,1763533833481,-1000.0,0.00022633,2]
[394402528,1763533833490,-1000.0,0.00022633,2]
[394402531,1763533833502,-1000.0,0.00022633,2]
[394402533,1763533833513,-1146.27147923,0.00022633,2]
[394402535,1763533833522,-168.0,0.00022723,2]
[394402537,1763533833532,-168.0,0.00022884,2]
[394402539,1763533833550,-232.268042,0.00023014,2]
[394402541,1763533833559,-495.0,0.00023055,2]
[394402543,1763533833568,-760.0,0.00023151,2]
[394402545,1763533833579,-2500.0,0.00023164,2]
[394402547,1763533833590,-2500.0,0.00023164,2]
[394402549,1763533833600,-495.0,0.00023265,2]
[394402551,1763533833609,-495.0,0.00023372,2]
[394402553,1763533833619,-589.04162712,0.00023414,2]
[394402555,1763533833628,-258.25828172,0.00023414,2]
[394402557,1763533833638,-208.30946218,0.00023414,2]
[394402559,1763533833647,-860.0,0.00023699,2]
[394402561,1763533833657,-3000.0,0.00023712,2]
[394402563,1763533833667,-513.00731581,0.00023712,2]
[394402565,1763533833678,-495.0,0.00023721,2]
[394402567,1763533833687,-495.0,0.00023742,2]
[394402569,1763533833696,-1152.0,0.00023746,2]
[394402571,1763533833705,-308.93354825,0.00023759,2]
[394402573,1763533833714,-495.0,0.0002385,2]
[394402575,1763533833724,-495.0,0.00023944,2]
[394402577,1763533833733,-500.0,0.00023973,2]
[394402579,1763533833743,-500.0,0.00023973,2]
[394402581,1763533833752,-500.0,0.00023973,2]
[394402583,1763533833761,-495.0,0.00023991,2]
[394402585,1763533833770,-495.0,0.00024081,2]
[394402587,1763533833779,-2315.15,0.000241,14]
[394402589,1763533833788,-26950.94,0.000241,2]
[394402591,1763533833797,-369133.51451595,0.00024142,2]
[394402593,1763533833806,-960.0,0.00024247,2]
[394402595,1763533833816,-3500.0,0.0002426,2]
[394402597,1763533833826,-1000.0,0.00024398,20]
[394402599,1763533833835,-244.0,0.00024398,20]
[394402601,1763533833845,-1225.68,0.000244,7]
[394402603,1763533833854,-495.0,0.00024419,2]
[394402605,1763533833864,-495.0,0.00024513,2]
[394402607,1763533833873,-1000.0,0.00024521,2]
[394402609,1763533833883,-1000.0,0.00024521,2]
[394402611,1763533833893,-1000.0,0.00024521,2]
[394402613,1763533833902,-746.6890666,0.00024536,2]
[394402614,1763533833911,-11615.97409497,0.0002455,2]
[394402616,1763533833924,-156195.54785904,0.0002465,2]
[394402618,1763533833933,-511.91515226,0.0002465,2]
[394402620,1763533833943,-380.0,0.00024658,2]
[394402622,1763533833952,-163.19785608,0.00024673,2]
[394402624,1763533833961,-495.0,0.00024708,2]
[394402626,1763533833970,-6904.47525677,0.00024742,2]
[394402628,1763533833980,-495.0,0.00024766,2]
[394402629,1763533833989,-1060.0,0.00024795,2]
[394402631,1763533833999,-1342.14851202,0.00024808,2]
[394402633,1763533834008,-500.0,0.00024826,2]
[394402634,1763533834018,-6000.0,0.00024827,2]
[394402635,1763533834027,-495.0,0.00024881,2]